Workbook

Sheet Rockbelt
A1: Autor: Sancho 6.12.2015
L2: Berechnung des exponentiell geglätteten Durchschnittes für beliebige Zeiträume
A12: Def.:
A13: EMA | B13: exponential moving average = exponentiell geglätteter gleitender Durchschnitt
B14: Wird berechnet indem vom vorherigen EMA, das EMA mit dem aktuellen Gewicht
B15: abgezogen wird und der aktuelle Wert mit dem aktuellen Gewicht addiert wird.
B16: Das erste EMA = das arithmetische Mittel.
B17: Gewicht des aktuellen Wertes
A20: Hintergrund:
A21: Im Gegensatz zum arithmetischen Mittel (Gewicht jeder Zahl=1) erhalten beim EMA die
A22: letzten Werte ein höheres Gewicht als die ersten/älteren.
A23: Dieses Verfahren findet man häufig in der Logistik. Ob die Gewichtung gerechtfertigt ist/war,
A24: bzw. für Wertpapierkurse erfolgreich war, sollte mit Backtests leicht festzustellen sein.
A26: Realisierung in Excel:
A27: Soweit es möglich ist, versuche ich eine Lösung ohne Programmierung zum manuellen
A28: Selbstrechnen zu nutzen.
A29: Die VBA-Programme findet ihr wie immer im VBA-Rockbelt-Modul.
A32: Beispiel anhand der Kurse des DAX | I32: 8 | J32: Tage | L32: mit den Buttons "+" und "-" lässt sich der Zeitraum einstellen - oder man ändert den Wert manuell.
A33: Tag | B33: Open | C33: High | D33: Low | E33: Close | F33: Volume | G33: Adj Close | I33: EMA
A34: 2000-01-03 | B34: 6961.72 | C34: 7159.33 | D34: 6720.87 | E34: 6750.75 | F34: 0 | G34: 6750.76
A35: 2000-01-04 | B35: 6747.24 | C35: 6755.36 | D35: 6510.46 | E35: 6586.95 | F35: 0 | G35: 6586.95
A36: 2000-01-05 | B36: 6585.85 | C36: 6585.85 | D36: 6388.91 | E36: 6502.07 | F36: 0 | G36: 6502.07
A37: 2000-01-06 | B37: 6501.45 | C37: 6539.31 | D37: 6402.63 | E37: 6474.92 | F37: 0 | G37: 6474.92
A38: 2000-01-07 | B38: 6489.94 | C38: 6791.53 | D38: 6470.14 | E38: 6780.96 | F38: 0 | G38: 6780.96
A39: 2000-01-10 | B39: 6785.47 | C39: 6975.26 | D39: 6785.47 | E39: 6925.52 | F39: 0 | G39: 6925.52
A40: 2000-01-11 | B40: 6926.04 | C40: 6943.83 | D40: 6821.26 | E40: 6891.25 | F40: 0 | G40: 6891.25
A41: 2000-01-12 | B41: 6878.92 | C41: 6913.5 | D41: 6783.22 | E41: 6912.81 | F41: 0 | G41: 6912.81 | I41: =AVERAGE(G33:G41) -> 6728.155
A42: 2000-01-13 | B42: 6913.13 | C42: 7106.45 | D42: 6898.69 | E42: 6955.98 | F42: 0 | G42: 6955.98 | I42: =G42*(2/(R_Zeitraum+1))+I41*(1-(2/(R_Zeitraum+1))) -> 6778.782778
A43: 2000-01-14 | B43: 6960.29 | C43: 7207.45 | D43: 6960.29 | E43: 7173.22 | F43: 0 | G43: 7173.22 | I43: =G43*(2/(R_Zeitraum+1))+I42*(1-(2/(R_Zeitraum+1))) -> 6866.435494
A44: 2000-01-17 | B44: 7177.48 | C44: 7297.04 | D44: 7112.97 | E44: 7258.9 | F44: 0 | G44: 7258.9 | I44: =G44*(2/(R_Zeitraum+1))+I43*(1-(2/(R_Zeitraum+1))) -> 6953.649829
A45: 2000-01-18 | B45: 7262.21 | C45: 7306.48 | D45: 7053.86 | E45: 7072.12 | F45: 0 | G45: 7072.12 | I45: =G45*(2/(R_Zeitraum+1))+I44*(1-(2/(R_Zeitraum+1))) -> 6979.976533
A46: 2000-01-19 | B46: 7065.31 | C46: 7110.19 | D46: 6987.12 | E46: 7091.04 | F46: 0 | G46: 7091.04 | I46: =G46*(2/(R_Zeitraum+1))+I45*(1-(2/(R_Zeitraum+1))) -> 7004.657304
A47: 2000-01-20 | B47: 7095.98 | C47: 7230.75 | D47: 7076.81 | E47: 7112.66 | F47: 0 | G47: 7112.66 | I47: =G47*(2/(R_Zeitraum+1))+I46*(1-(2/(R_Zeitraum+1))) -> 7028.657903
A48: 2000-01-21 | B48: 7103.7 | C48: 7103.7 | D48: 6939.94 | E48: 6992.75 | F48: 0 | G48: 6992.75 | I48: =G48*(2/(R_Zeitraum+1))+I47*(1-(2/(R_Zeitraum+1))) -> 7020.678369
A49: 2000-01-24 | B49: 6987.59 | C49: 7092.5 | D49: 6921.97 | E49: 6931.99 | F49: 0 | G49: 6931.99 | I49: =G49*(2/(R_Zeitraum+1))+I48*(1-(2/(R_Zeitraum+1))) -> 7000.969842
A50: 2000-01-25 | B50: 6928.08 | C50: 6928.08 | D50: 6809.64 | E50: 6809.64 | F50: 0 | G50: 6809.64 | I50: =G50*(2/(R_Zeitraum+1))+I49*(1-(2/(R_Zeitraum+1))) -> 6958.4521
A51: 2000-01-26 | B51: 6838.05 | C51: 6980.93 | D51: 6838.05 | E51: 6969.37 | F51: 0 | G51: 6969.37 | I51: =G51*(2/(R_Zeitraum+1))+I50*(1-(2/(R_Zeitraum+1))) -> 6960.8783
A52: 2000-01-27 | B52: 6983.42 | C52: 7169.87 | D52: 6944.65 | E52: 7126.13 | F52: 0 | G52: 7126.13 | I52: =G52*(2/(R_Zeitraum+1))+I51*(1-(2/(R_Zeitraum+1))) -> 6997.6009
A53: 2000-01-28 | B53: 7128.01 | C53: 7214.58 | D53: 7040.49 | E53: 7066.6 | F53: 0 | G53: 7066.6 | I53: =G53*(2/(R_Zeitraum+1))+I52*(1-(2/(R_Zeitraum+1))) -> 7012.934033
A54: 2000-01-31 | B54: 7054.24 | C54: 7054.24 | D54: 6816.54 | E54: 6835.6 | F54: 0 | G54: 6835.6 | I54: =G54*(2/(R_Zeitraum+1))+I53*(1-(2/(R_Zeitraum+1))) -> 6973.52647
A55: 2000-02-01 | B55: 6841.12 | C55: 7052.22 | D55: 6841.12 | E55: 7050.46 | F55: 0 | G55: 7050.46 | I55: =G55*(2/(R_Zeitraum+1))+I54*(1-(2/(R_Zeitraum+1))) -> 6990.62281
A56: 2000-02-02 | B56: 7063.57 | C56: 7172.05 | D56: 7038.71 | E56: 7171.95 | F56: 0 | G56: 7171.95 | I56: =G56*(2/(R_Zeitraum+1))+I55*(1-(2/(R_Zeitraum+1))) -> 7030.917741
A57: 2000-02-03 | B57: 7175.87 | C57: 7354.56 | D57: 7134.42 | E57: 7354.26 | F57: 0 | G57: 7354.26 | I57: =G57*(2/(R_Zeitraum+1))+I56*(1-(2/(R_Zeitraum+1))) -> 7102.771577
A58: 2000-02-04 | B58: 7355.69 | C58: 7491.79 | D58: 7338.15 | E58: 7444.61 | F58: 0 | G58: 7444.61 | I58: =G58*(2/(R_Zeitraum+1))+I57*(1-(2/(R_Zeitraum+1))) -> 7178.735671
A59: 2000-02-07 | B59: 7450.79 | C59: 7450.79 | D59: 7270.4 | E59: 7296.32 | F59: 0 | G59: 7296.32 | I59: =G59*(2/(R_Zeitraum+1))+I58*(1-(2/(R_Zeitraum+1))) -> 7204.865522
A60: 2000-02-08 | B60: 7295.61 | C60: 7570.55 | D60: 7263.19 | E60: 7549.88 | F60: 0 | G60: 7549.88 | I60: =G60*(2/(R_Zeitraum+1))+I59*(1-(2/(R_Zeitraum+1))) -> 7281.535406
A61: 2000-02-09 | B61: 7566.68 | C61: 7676.56 | D61: 7526.08 | E61: 7629.11 | F61: 0 | G61: 7629.11 | I61: =G61*(2/(R_Zeitraum+1))+I60*(1-(2/(R_Zeitraum+1))) -> 7358.774204
A62: 2000-02-10 | B62: 7617.07 | C62: 7709.27 | D62: 7496.42 | E62: 7709.27 | F62: 0 | G62: 7709.27 | I62: =G62*(2/(R_Zeitraum+1))+I61*(1-(2/(R_Zeitraum+1))) -> 7436.662159
A63: 2000-02-11 | B63: 7724.36 | C63: 7812.09 | D63: 7586.26 | E63: 7611.55 | F63: 0 | G63: 7611.55 | I63: =G63*(2/(R_Zeitraum+1))+I62*(1-(2/(R_Zeitraum+1))) -> 7475.526124
A64: 2000-02-14 | B64: 7569.01 | C64: 7660.39 | D64: 7542.3 | E64: 7644.8 | F64: 0 | G64: 7644.8 | I64: =G64*(2/(R_Zeitraum+1))+I63*(1-(2/(R_Zeitraum+1))) -> 7513.142541
A65: 2000-02-15 | B65: 7636.41 | C65: 7699.97 | D65: 7396.13 | E65: 7396.13 | F65: 0 | G65: 7396.13 | I65: =G65*(2/(R_Zeitraum+1))+I64*(1-(2/(R_Zeitraum+1))) -> 7487.139754
A66: 2000-02-16 | B66: 7401.26 | C66: 7596.9 | D66: 7342.65 | E66: 7490.32 | F66: 0 | G66: 7490.32 | I66: =G66*(2/(R_Zeitraum+1))+I65*(1-(2/(R_Zeitraum+1))) -> 7487.846475
A67: 2000-02-17 | B67: 7478.32 | C67: 7637.46 | D67: 7394.02 | E67: 7580.53 | F67: 0 | G67: 7580.53 | I67: =G67*(2/(R_Zeitraum+1))+I66*(1-(2/(R_Zeitraum+1))) -> 7508.442814
A68: 2000-02-18 | B68: 7584.39 | C68: 7658.88 | D68: 7543.5 | E68: 7573.78 | F68: 0 | G68: 7573.78 | I68: =G68*(2/(R_Zeitraum+1))+I67*(1-(2/(R_Zeitraum+1))) -> 7522.962189
A69: 2000-02-21 | B69: 7568.34 | C69: 7590.53 | D69: 7447.71 | E69: 7590.53 | F69: 0 | G69: 7590.53 | I69: =G69*(2/(R_Zeitraum+1))+I68*(1-(2/(R_Zeitraum+1))) -> 7537.977258
A70: 2000-02-22 | B70: 7580.38 | C70: 7725.5 | D70: 7540.36 | E70: 7607.94 | F70: 0 | G70: 7607.94 | I70: =G70*(2/(R_Zeitraum+1))+I69*(1-(2/(R_Zeitraum+1))) -> 7553.524534
A71: 2000-02-23 | B71: 7619.83 | C71: 7772.28 | D71: 7619.83 | E71: 7698.97 | F71: 0 | G71: 7698.97 | I71: =G71*(2/(R_Zeitraum+1))+I70*(1-(2/(R_Zeitraum+1))) -> 7585.845749
A72: 2000-02-24 | B72: 7696.92 | C72: 7813.2 | D72: 7587.08 | E72: 7640.53 | F72: 0 | G72: 7640.53 | I72: =G72*(2/(R_Zeitraum+1))+I71*(1-(2/(R_Zeitraum+1))) -> 7597.997804
A73: 2000-02-25 | B73: 7668.7 | C73: 7776.84 | D73: 7640.69 | E73: 7738.68 | F73: 0 | G73: 7738.68 | I73: =G73*(2/(R_Zeitraum+1))+I72*(1-(2/(R_Zeitraum+1))) -> 7629.260515
A74: 2000-02-28 | B74: 7732.9 | C74: 7747.37 | D74: 7492.23 | E74: 7587.13 | F74: 0 | G74: 7587.13 | I74: =G74*(2/(R_Zeitraum+1))+I73*(1-(2/(R_Zeitraum+1))) -> 7619.898178
A75: 2000-02-29 | B75: 7590.9 | C75: 7700.36 | D75: 7590.9 | E75: 7644.55 | F75: 0 | G75: 7644.55 | I75: =G75*(2/(R_Zeitraum+1))+I74*(1-(2/(R_Zeitraum+1))) -> 7625.376361
A76: 2000-03-01 | B76: 7645.3 | C76: 7769.01 | D76: 7618.6 | E76: 7727.93 | F76: 0 | G76: 7727.93 | I76: =G76*(2/(R_Zeitraum+1))+I75*(1-(2/(R_Zeitraum+1))) -> 7648.166058
A77: 2000-03-02 | B77: 7720.9 | C77: 7950.66 | D77: 7639.93 | E77: 7945.77 | F77: 0 | G77: 7945.77 | I77: =G77*(2/(R_Zeitraum+1))+I76*(1-(2/(R_Zeitraum+1))) -> 7714.300268
A78: 2000-03-03 | B78: 7952.28 | C78: 8022.48 | D78: 7874.57 | E78: 7960.03 | F78: 0 | G78: 7960.03 | I78: =G78*(2/(R_Zeitraum+1))+I77*(1-(2/(R_Zeitraum+1))) -> 7768.906875
A79: 2000-03-06 | B79: 7960.09 | C79: 8030.59 | D79: 7925.2 | E79: 7975.78 | F79: 0 | G79: 7975.78 | I79: =G79*(2/(R_Zeitraum+1))+I78*(1-(2/(R_Zeitraum+1))) -> 7814.87868
A80: 2000-03-07 | B80: 7971.23 | C80: 8136.16 | D80: 7922.32 | E80: 8064.97 | F80: 0 | G80: 8064.97 | I80: =G80*(2/(R_Zeitraum+1))+I79*(1-(2/(R_Zeitraum+1))) -> 7870.454529
A81: 2000-03-08 | B81: 8069.98 | C81: 8097.68 | D81: 7949.38 | E81: 7987 | F81: 0 | G81: 7987 | I81: =G81*(2/(R_Zeitraum+1))+I80*(1-(2/(R_Zeitraum+1))) -> 7896.353523
A82: 2000-03-09 | B82: 7984.21 | C82: 8084.92 | D82: 7877.19 | E82: 7949.15 | F82: 0 | G82: 7949.15 | I82: =G82*(2/(R_Zeitraum+1))+I81*(1-(2/(R_Zeitraum+1))) -> 7908.086073
A83: 2000-03-10 | B83: 7952.51 | C83: 8076.31 | D83: 7952.51 | E83: 7975.95 | F83: 0 | G83: 7975.95 | I83: =G83*(2/(R_Zeitraum+1))+I82*(1-(2/(R_Zeitraum+1))) -> 7923.166946
A84: 2000-03-13 | B84: 7977.06 | C84: 7991.07 | D84: 7630.31 | E84: 7693.85 | F84: 0 | G84: 7693.85 | I84: =G84*(2/(R_Zeitraum+1))+I83*(1-(2/(R_Zeitraum+1))) -> 7872.207625
A85: 2000-03-14 | B85: 7695.79 | C85: 7757.03 | D85: 7630.1 | E85: 7650.05 | F85: 0 | G85: 7650.05 | I85: =G85*(2/(R_Zeitraum+1))+I84*(1-(2/(R_Zeitraum+1))) -> 7822.839264
A86: 2000-03-15 | B86: 7633.2 | C86: 7633.2 | D86: 7411.76 | E86: 7414.46 | F86: 0 | G86: 7414.46 | I86: =G86*(2/(R_Zeitraum+1))+I85*(1-(2/(R_Zeitraum+1))) -> 7732.088316
A87: 2000-03-16 | B87: 7416.64 | C87: 7648.28 | D87: 7416.64 | E87: 7583.96 | F87: 0 | G87: 7583.96 | I87: =G87*(2/(R_Zeitraum+1))+I86*(1-(2/(R_Zeitraum+1))) -> 7699.170913
A88: 2000-03-17 | B88: 7594.99 | C88: 7834.54 | D88: 7574.52 | E88: 7710.92 | F88: 0 | G88: 7710.92 | I88: =G88*(2/(R_Zeitraum+1))+I87*(1-(2/(R_Zeitraum+1))) -> 7701.781821
A89: 2000-03-20 | B89: 7716.24 | C89: 7887.97 | D89: 7716.24 | E89: 7872.38 | F89: 0 | G89: 7872.38 | I89: =G89*(2/(R_Zeitraum+1))+I88*(1-(2/(R_Zeitraum+1))) -> 7739.692527
A90: 2000-03-21 | B90: 7865.48 | C90: 7865.48 | D90: 7735.74 | E90: 7807.93 | F90: 0 | G90: 7807.93 | I90: =G90*(2/(R_Zeitraum+1))+I89*(1-(2/(R_Zeitraum+1))) -> 7754.85641
A91: 2000-03-22 | B91: 7827.56 | C91: 7949.72 | D91: 7787.09 | E91: 7798.62 | F91: 0 | G91: 7798.62 | I91: =G91*(2/(R_Zeitraum+1))+I90*(1-(2/(R_Zeitraum+1))) -> 7764.581652
A92: 2000-03-23 | B92: 7803.69 | C92: 7873.03 | D92: 7677.08 | E92: 7694.78 | F92: 0 | G92: 7694.78 | I92: =G92*(2/(R_Zeitraum+1))+I91*(1-(2/(R_Zeitraum+1))) -> 7749.070174
A93: 2000-03-24 | B93: 7706.5 | C93: 7932.42 | D93: 7706.5 | E93: 7932.42 | F93: 0 | G93: 7932.42 | I93: =G93*(2/(R_Zeitraum+1))+I92*(1-(2/(R_Zeitraum+1))) -> 7789.81458
A94: 2000-03-27 | B94: 7932.71 | C94: 7939.92 | D94: 7832.06 | E94: 7892.49 | F94: 0 | G94: 7892.49 | I94: =G94*(2/(R_Zeitraum+1))+I93*(1-(2/(R_Zeitraum+1))) -> 7812.63134
A95: 2000-03-28 | B95: 7891.15 | C95: 8031.21 | D95: 7880.12 | E95: 7931.93 | F95: 0 | G95: 7931.93 | I95: =G95*(2/(R_Zeitraum+1))+I94*(1-(2/(R_Zeitraum+1))) -> 7839.142153
A96: 2000-03-29 | B96: 7930.82 | C96: 7963.7 | D96: 7859.44 | E96: 7864.76 | F96: 0 | G96: 7864.76 | I96: =G96*(2/(R_Zeitraum+1))+I95*(1-(2/(R_Zeitraum+1))) -> 7844.835008
A97: 2000-03-30 | B97: 7834.56 | C97: 7849.53 | D97: 7610.51 | E97: 7644.89 | F97: 0 | G97: 7644.89 | I97: =G97*(2/(R_Zeitraum+1))+I96*(1-(2/(R_Zeitraum+1))) -> 7800.402784
A98: 2000-03-31 | B98: 7649.88 | C98: 7704.28 | D98: 7522.7 | E98: 7599.39 | F98: 0 | G98: 7599.39 | I98: =G98*(2/(R_Zeitraum+1))+I97*(1-(2/(R_Zeitraum+1))) -> 7755.733276
A99: 2000-04-03 | B99: 7599.78 | C99: 7641.53 | D99: 7404.37 | E99: 7429.22 | F99: 0 | G99: 7429.22 | I99: =G99*(2/(R_Zeitraum+1))+I98*(1-(2/(R_Zeitraum+1))) -> 7683.174771
A100: 2000-04-04 | B100: 7431.42 | C100: 7566.92 | D100: 7430.18 | E100: 7522.8 | F100: 0 | G100: 7522.8 | I100: =G100*(2/(R_Zeitraum+1))+I99*(1-(2/(R_Zeitraum+1))) -> 7647.535933
A101: 2000-04-05 | B101: 7502.09 | C101: 7538.72 | D101: 7205.86 | E101: 7330.77 | F101: 0 | G101: 7330.77 | I101: =G101*(2/(R_Zeitraum+1))+I100*(1-(2/(R_Zeitraum+1))) -> 7577.143503
A102: 2000-04-06 | B102: 7345.01 | C102: 7480.13 | D102: 7325.72 | E102: 7446.21 | F102: 0 | G102: 7446.21 | I102: =G102*(2/(R_Zeitraum+1))+I101*(1-(2/(R_Zeitraum+1))) -> 7548.047169
A103: 2000-04-07 | B103: 7470.39 | C103: 7533.36 | D103: 7399.81 | E103: 7522.2 | F103: 0 | G103: 7522.2 | I103: =G103*(2/(R_Zeitraum+1))+I102*(1-(2/(R_Zeitraum+1))) -> 7542.303354
A104: 2000-04-10 | B104: 7534.91 | C104: 7614.81 | D104: 7507.93 | E104: 7516.95 | F104: 0 | G104: 7516.95 | I104: =G104*(2/(R_Zeitraum+1))+I103*(1-(2/(R_Zeitraum+1))) -> 7536.669275
A105: 2000-04-11 | B105: 7513.12 | C105: 7513.12 | D105: 7366.49 | E105: 7442.66 | F105: 0 | G105: 7442.66 | I105: =G105*(2/(R_Zeitraum+1))+I104*(1-(2/(R_Zeitraum+1))) -> 7515.778325
A106: 2000-04-12 | B106: 7438.26 | C106: 7517.75 | D106: 7414.38 | E106: 7443.07 | F106: 0 | G106: 7443.07 | I106: =G106*(2/(R_Zeitraum+1))+I105*(1-(2/(R_Zeitraum+1))) -> 7499.62092
A107: 2000-04-13 | B107: 7421.06 | C107: 7450.39 | D107: 7302.82 | E107: 7449.06 | F107: 0 | G107: 7449.06 | I107: =G107*(2/(R_Zeitraum+1))+I106*(1-(2/(R_Zeitraum+1))) -> 7488.38516
A108: 2000-04-14 | B108: 7440.05 | C108: 7440.05 | D108: 7168.9 | E108: 7214.83 | F108: 0 | G108: 7214.83 | I108: =G108*(2/(R_Zeitraum+1))+I107*(1-(2/(R_Zeitraum+1))) -> 7427.595124
A109: 2000-04-17 | B109: 7201.66 | C109: 7201.66 | D109: 6890.96 | E109: 7187.14 | F109: 0 | G109: 7187.14 | I109: =G109*(2/(R_Zeitraum+1))+I108*(1-(2/(R_Zeitraum+1))) -> 7374.160652
A110: 2000-04-18 | B110: 7186.18 | C110: 7305.03 | D110: 7094.92 | E110: 7196.49 | F110: 0 | G110: 7196.49 | I110: =G110*(2/(R_Zeitraum+1))+I109*(1-(2/(R_Zeitraum+1))) -> 7334.678285
A111: 2000-04-19 | B111: 7204.33 | C111: 7305.94 | D111: 7146.52 | E111: 7216.71 | F111: 0 | G111: 7216.71 | I111: =G111*(2/(R_Zeitraum+1))+I110*(1-(2/(R_Zeitraum+1))) -> 7308.463111
A112: 2000-04-20 | B112: 7216.22 | C112: 7242.8 | D112: 7157.95 | E112: 7157.95 | F112: 0 | G112: 7157.95 | I112: =G112*(2/(R_Zeitraum+1))+I111*(1-(2/(R_Zeitraum+1))) -> 7275.015753
A113: 2000-04-25 | B113: 7164.15 | C113: 7317.06 | D113: 7096.38 | E113: 7280.51 | F113: 0 | G113: 7280.51 | I113: =G113*(2/(R_Zeitraum+1))+I112*(1-(2/(R_Zeitraum+1))) -> 7276.236697
A114: 2000-04-26 | B114: 7293.1 | C114: 7444.28 | D114: 7293.1 | E114: 7388.55 | F114: 0 | G114: 7388.55 | I114: =G114*(2/(R_Zeitraum+1))+I113*(1-(2/(R_Zeitraum+1))) -> 7301.195208
A115: 2000-04-27 | B115: 7386.61 | C115: 7413.82 | D115: 7156.83 | E115: 7221.74 | F115: 0 | G115: 7221.74 | I115: =G115*(2/(R_Zeitraum+1))+I114*(1-(2/(R_Zeitraum+1))) -> 7283.538495
A116: 2000-04-28 | B116: 7223.27 | C116: 7436.45 | D116: 7223.27 | E116: 7414.68 | F116: 0 | G116: 7414.68 | I116: =G116*(2/(R_Zeitraum+1))+I115*(1-(2/(R_Zeitraum+1))) -> 7312.681052
A117: 2000-05-02 | B117: 7407.53 | C117: 7561.67 | D117: 7405.7 | E117: 7555.92 | F117: 0 | G117: 7555.92 | I117: =G117*(2/(R_Zeitraum+1))+I116*(1-(2/(R_Zeitraum+1))) -> 7366.734152
A118: 2000-05-03 | B118: 7547.91 | C118: 7571.72 | D118: 7362.75 | E118: 7376.93 | F118: 0 | G118: 7376.93 | I118: =G118*(2/(R_Zeitraum+1))+I117*(1-(2/(R_Zeitraum+1))) -> 7368.999896
A119: 2000-05-04 | B119: 7388.68 | C119: 7419.74 | D119: 7321.43 | E119: 7386.71 | F119: 0 | G119: 7386.71 | I119: =G119*(2/(R_Zeitraum+1))+I118*(1-(2/(R_Zeitraum+1))) -> 7372.935474
A120: 2000-05-05 | B120: 7391.62 | C120: 7530.82 | D120: 7333.48 | E120: 7530.82 | F120: 0 | G120: 7530.82 | I120: =G120*(2/(R_Zeitraum+1))+I119*(1-(2/(R_Zeitraum+1))) -> 7408.020925
A121: 2000-05-08 | B121: 7532.97 | C121: 7532.97 | D121: 7383.22 | E121: 7408.09 | F121: 0 | G121: 7408.09 | I121: =G121*(2/(R_Zeitraum+1))+I120*(1-(2/(R_Zeitraum+1))) -> 7408.036275
A122: 2000-05-09 | B122: 7407.89 | C122: 7407.95 | D122: 7225.18 | E122: 7280.54 | F122: 0 | G122: 7280.54 | I122: =G122*(2/(R_Zeitraum+1))+I121*(1-(2/(R_Zeitraum+1))) -> 7379.703769
A123: 2000-05-10 | B123: 7273.56 | C123: 7313.27 | D123: 7102.59 | E123: 7120.86 | F123: 0 | G123: 7120.86 | I123: =G123*(2/(R_Zeitraum+1))+I122*(1-(2/(R_Zeitraum+1))) -> 7322.182932
A124: 2000-05-11 | B124: 7111.28 | C124: 7277.56 | D124: 7013.7 | E124: 7259.48 | F124: 0 | G124: 7259.48 | I124: =G124*(2/(R_Zeitraum+1))+I123*(1-(2/(R_Zeitraum+1))) -> 7308.248947
A125: 2000-05-12 | B125: 7269.87 | C125: 7331.03 | D125: 7206.09 | E125: 7269.28 | F125: 0 | G125: 7269.28 | I125: =G125*(2/(R_Zeitraum+1))+I124*(1-(2/(R_Zeitraum+1))) -> 7299.589181
A126: 2000-05-15 | B126: 7266.08 | C126: 7278.03 | D126: 7188.25 | E126: 7195.15 | F126: 0 | G126: 7195.15 | I126: =G126*(2/(R_Zeitraum+1))+I125*(1-(2/(R_Zeitraum+1))) -> 7276.380474
A127: 2000-05-16 | B127: 7203.58 | C127: 7398.48 | D127: 7203.58 | E127: 7371.06 | F127: 0 | G127: 7371.06 | I127: =G127*(2/(R_Zeitraum+1))+I126*(1-(2/(R_Zeitraum+1))) -> 7297.420369
A128: 2000-05-17 | B128: 7370.18 | C128: 7378.57 | D128: 7197.83 | E128: 7211.51 | F128: 0 | G128: 7211.51 | I128: =G128*(2/(R_Zeitraum+1))+I127*(1-(2/(R_Zeitraum+1))) -> 7278.329176
A129: 2000-05-18 | B129: 7214.5 | C129: 7258.61 | D129: 7158.54 | E129: 7181.58 | F129: 0 | G129: 7181.58 | I129: =G129*(2/(R_Zeitraum+1))+I128*(1-(2/(R_Zeitraum+1))) -> 7256.829359
A130: 2000-05-19 | B130: 7182.46 | C130: 7182.46 | D130: 6958.92 | E130: 6989.03 | F130: 0 | G130: 6989.03 | I130: =G130*(2/(R_Zeitraum+1))+I129*(1-(2/(R_Zeitraum+1))) -> 7197.31839
A131: 2000-05-22 | B131: 6983.46 | C131: 7040.57 | D131: 6818.7 | E131: 6912.96 | F131: 0 | G131: 6912.96 | I131: =G131*(2/(R_Zeitraum+1))+I130*(1-(2/(R_Zeitraum+1))) -> 7134.127637
A132: 2000-05-23 | B132: 6918.93 | C132: 7017.24 | D132: 6883.39 | E132: 6927.69 | F132: 0 | G132: 6927.69 | I132: =G132*(2/(R_Zeitraum+1))+I131*(1-(2/(R_Zeitraum+1))) -> 7088.252606
A133: 2000-05-24 | B133: 6920.14 | C133: 6920.14 | D133: 6794.08 | E133: 6834.88 | F133: 0 | G133: 6834.88 | I133: =G133*(2/(R_Zeitraum+1))+I132*(1-(2/(R_Zeitraum+1))) -> 7031.947583
A134: 2000-05-25 | B134: 6846.37 | C134: 6998.31 | D134: 6846.37 | E134: 6978.87 | F134: 0 | G134: 6978.87 | I134: =G134*(2/(R_Zeitraum+1))+I133*(1-(2/(R_Zeitraum+1))) -> 7020.152564
A135: 2000-05-26 | B135: 6969.01 | C135: 6972.21 | D135: 6833.11 | E135: 6839.33 | F135: 0 | G135: 6839.33 | I135: =G135*(2/(R_Zeitraum+1))+I134*(1-(2/(R_Zeitraum+1))) -> 6979.969772
A136: 2000-05-29 | B136: 6956.14 | C136: 7029.8 | D136: 6956.14 | E136: 7016.66 | F136: 0 | G136: 7016.66 | I136: =G136*(2/(R_Zeitraum+1))+I135*(1-(2/(R_Zeitraum+1))) -> 6988.123156
A137: 2000-05-30 | B137: 7024.6 | C137: 7150.5 | D137: 7024.6 | E137: 7119.26 | F137: 0 | G137: 7119.26 | I137: =G137*(2/(R_Zeitraum+1))+I136*(1-(2/(R_Zeitraum+1))) -> 7017.264677
A138: 2000-05-31 | B138: 7127.26 | C138: 7213.98 | D138: 7101.14 | E138: 7109.67 | F138: 0 | G138: 7109.67 | I138: =G138*(2/(R_Zeitraum+1))+I137*(1-(2/(R_Zeitraum+1))) -> 7037.799193
A139: 2000-06-01 | B139: 7117.57 | C139: 7277.52 | D139: 7117.57 | E139: 7272.76 | F139: 0 | G139: 7272.76 | I139: =G139*(2/(R_Zeitraum+1))+I138*(1-(2/(R_Zeitraum+1))) -> 7090.012706
A140: 2000-06-02 | B140: 7286.19 | C140: 7460.51 | D140: 7246.17 | E140: 7438.95 | F140: 0 | G140: 7438.95 | I140: =G140*(2/(R_Zeitraum+1))+I139*(1-(2/(R_Zeitraum+1))) -> 7167.554327
A141: 2000-06-05 | B141: 7456.22 | C141: 7486.4 | D141: 7354.84 | E141: 7408.02 | F141: 0 | G141: 7408.02 | I141: =G141*(2/(R_Zeitraum+1))+I140*(1-(2/(R_Zeitraum+1))) -> 7220.991143
A142: 2000-06-06 | B142: 7404.78 | C142: 7464.76 | D142: 7298.23 | E142: 7359.8 | F142: 0 | G142: 7359.8 | I142: =G142*(2/(R_Zeitraum+1))+I141*(1-(2/(R_Zeitraum+1))) -> 7251.837556
A143: 2000-06-07 | B143: 7363.66 | C143: 7363.66 | D143: 7241.58 | E143: 7285.93 | F143: 0 | G143: 7285.93 | I143: =G143*(2/(R_Zeitraum+1))+I142*(1-(2/(R_Zeitraum+1))) -> 7259.413654
A144: 2000-06-08 | B144: 7293.74 | C144: 7390.5 | D144: 7211.97 | E144: 7253.46 | F144: 0 | G144: 7253.46 | I144: =G144*(2/(R_Zeitraum+1))+I143*(1-(2/(R_Zeitraum+1))) -> 7258.09062
A145: 2000-06-09 | B145: 7246.46 | C145: 7354.32 | D145: 7233.65 | E145: 7246.79 | F145: 0 | G145: 7246.79 | I145: =G145*(2/(R_Zeitraum+1))+I144*(1-(2/(R_Zeitraum+1))) -> 7255.579371
A146: 2000-06-12 | B146: 7251.29 | C146: 7315.05 | D146: 7224.72 | E146: 7240.1 | F146: 0 | G146: 7240.1 | I146: =G146*(2/(R_Zeitraum+1))+I145*(1-(2/(R_Zeitraum+1))) -> 7252.139511
A147: 2000-06-13 | B147: 7222.77 | C147: 7307.34 | D147: 7173.64 | E147: 7268.91 | F147: 0 | G147: 7268.91 | I147: =G147*(2/(R_Zeitraum+1))+I146*(1-(2/(R_Zeitraum+1))) -> 7255.866286
A148: 2000-06-14 | B148: 7292.77 | C148: 7374.6 | D148: 7251.23 | E148: 7350.94 | F148: 0 | G148: 7350.94 | I148: =G148*(2/(R_Zeitraum+1))+I147*(1-(2/(R_Zeitraum+1))) -> 7276.993778
A149: 2000-06-15 | B149: 7347.75 | C149: 7388.24 | D149: 7324.6 | E149: 7328.62 | F149: 0 | G149: 7328.62 | I149: =G149*(2/(R_Zeitraum+1))+I148*(1-(2/(R_Zeitraum+1))) -> 7288.466272
A150: 2000-06-16 | B150: 7344.44 | C150: 7368.57 | D150: 7246.77 | E150: 7252.58 | F150: 0 | G150: 7252.58 | I150: =G150*(2/(R_Zeitraum+1))+I149*(1-(2/(R_Zeitraum+1))) -> 7280.491545
A151: 2000-06-19 | B151: 7134.17 | C151: 7225.34 | D151: 7134.17 | E151: 7198.8 | F151: 0 | G151: 7198.8 | I151: =G151*(2/(R_Zeitraum+1))+I150*(1-(2/(R_Zeitraum+1))) -> 7262.337868
A152: 2000-06-20 | B152: 7207.59 | C152: 7270.2 | D152: 7201.88 | E152: 7227.27 | F152: 0 | G152: 7227.27 | I152: =G152*(2/(R_Zeitraum+1))+I151*(1-(2/(R_Zeitraum+1))) -> 7254.545009
A153: 2000-06-21 | B153: 7227.05 | C153: 7240.01 | D153: 7090.5 | E153: 7100.09 | F153: 0 | G153: 7100.09 | I153: =G153*(2/(R_Zeitraum+1))+I152*(1-(2/(R_Zeitraum+1))) -> 7220.221673
A154: 2000-06-22 | B154: 7112.15 | C154: 7172.86 | D154: 7028.34 | E154: 7064.73 | F154: 0 | G154: 7064.73 | I154: =G154*(2/(R_Zeitraum+1))+I153*(1-(2/(R_Zeitraum+1))) -> 7185.667968
A155: 2000-06-23 | B155: 7056.82 | C155: 7081.58 | D155: 6976.97 | E155: 6980.41 | F155: 0 | G155: 6980.41 | I155: =G155*(2/(R_Zeitraum+1))+I154*(1-(2/(R_Zeitraum+1))) -> 7140.055086
A156: 2000-06-26 | B156: 6986.89 | C156: 7085.27 | D156: 6975.07 | E156: 7027.19 | F156: 0 | G156: 7027.19 | I156: =G156*(2/(R_Zeitraum+1))+I155*(1-(2/(R_Zeitraum+1))) -> 7114.973956
A157: 2000-06-27 | B157: 7029.55 | C157: 7064.44 | D157: 6966.45 | E157: 7048.96 | F157: 0 | G157: 7048.96 | I157: =G157*(2/(R_Zeitraum+1))+I156*(1-(2/(R_Zeitraum+1))) -> 7100.304188
A158: 2000-06-28 | B158: 7050.84 | C158: 7072.64 | D158: 7010.67 | E158: 7054.3 | F158: 0 | G158: 7054.3 | I158: =G158*(2/(R_Zeitraum+1))+I157*(1-(2/(R_Zeitraum+1))) -> 7090.081035
A159: 2000-06-29 | B159: 7055.42 | C159: 7058 | D159: 6851.84 | E159: 6881.94 | F159: 0 | G159: 6881.94 | I159: =G159*(2/(R_Zeitraum+1))+I158*(1-(2/(R_Zeitraum+1))) -> 7043.827472
A160: 2000-06-30 | B160: 6882.94 | C160: 6935.18 | D160: 6866.85 | E160: 6882.44 | F160: 0 | G160: 6882.44 | I160: =G160*(2/(R_Zeitraum+1))+I159*(1-(2/(R_Zeitraum+1))) -> 7007.963589
A161: 2000-07-03 | B161: 6912.97 | C161: 6962.02 | D161: 6842.61 | E161: 6962.02 | F161: 0 | G161: 6962.02 | I161: =G161*(2/(R_Zeitraum+1))+I160*(1-(2/(R_Zeitraum+1))) -> 6997.753903
A162: 2000-07-04 | B162: 6958.4 | C162: 6976.08 | D162: 6881.14 | E162: 6944.36 | F162: 0 | G162: 6944.36 | I162: =G162*(2/(R_Zeitraum+1))+I161*(1-(2/(R_Zeitraum+1))) -> 6985.888591
A163: 2000-07-05 | B163: 6946.73 | C163: 7090.11 | D163: 6946.73 | E163: 6961.73 | F163: 0 | G163: 6961.73 | I163: =G163*(2/(R_Zeitraum+1))+I162*(1-(2/(R_Zeitraum+1))) -> 6980.520015
A164: 2000-07-06 | B164: 6947.21 | C164: 6978.93 | D164: 6905.24 | E164: 6972.8 | F164: 0 | G164: 6972.8 | I164: =G164*(2/(R_Zeitraum+1))+I163*(1-(2/(R_Zeitraum+1))) -> 6978.804456
A165: 2000-07-07 | B165: 6957.01 | C165: 7051.06 | D165: 6919.94 | E165: 7044.77 | F165: 0 | G165: 7044.77 | I165: =G165*(2/(R_Zeitraum+1))+I164*(1-(2/(R_Zeitraum+1))) -> 6993.463466
A166: 2000-07-10 | B166: 7052.68 | C166: 7126.04 | D166: 7031.33 | E166: 7066.22 | F166: 0 | G166: 7066.22 | I166: =G166*(2/(R_Zeitraum+1))+I165*(1-(2/(R_Zeitraum+1))) -> 7009.631585
A167: 2000-07-11 | B167: 7068.09 | C167: 7069.49 | D167: 6955.58 | E167: 7006.05 | F167: 0 | G167: 7006.05 | I167: =G167*(2/(R_Zeitraum+1))+I166*(1-(2/(R_Zeitraum+1))) -> 7008.835677
A168: 2000-07-12 | B168: 7015.84 | C168: 7100.36 | D168: 7011.68 | E168: 7065.97 | F168: 0 | G168: 7065.97 | I168: =G168*(2/(R_Zeitraum+1))+I167*(1-(2/(R_Zeitraum+1))) -> 7021.532193
A169: 2000-07-13 | B169: 7073.81 | C169: 7178.45 | D169: 7008.96 | E169: 7166.51 | F169: 0 | G169: 7166.51 | I169: =G169*(2/(R_Zeitraum+1))+I168*(1-(2/(R_Zeitraum+1))) -> 7053.749484
A170: 2000-07-14 | B170: 7193.23 | C170: 7342.22 | D170: 7173.42 | E170: 7321.94 | F170: 0 | G170: 7321.94 | I170: =G170*(2/(R_Zeitraum+1))+I169*(1-(2/(R_Zeitraum+1))) -> 7113.347376
A171: 2000-07-17 | B171: 7320.1 | C171: 7430.7 | D171: 7320.1 | E171: 7430.7 | F171: 0 | G171: 7430.7 | I171: =G171*(2/(R_Zeitraum+1))+I170*(1-(2/(R_Zeitraum+1))) -> 7183.870181
A172: 2000-07-18 | B172: 7417.02 | C172: 7449.78 | D172: 7355.31 | E172: 7406.91 | F172: 0 | G172: 7406.91 | I172: =G172*(2/(R_Zeitraum+1))+I171*(1-(2/(R_Zeitraum+1))) -> 7233.434586
A173: 2000-07-19 | B173: 7406.24 | C173: 7406.24 | D173: 7321.27 | E173: 7366.57 | F173: 0 | G173: 7366.57 | I173: =G173*(2/(R_Zeitraum+1))+I172*(1-(2/(R_Zeitraum+1))) -> 7263.020233
A174: 2000-07-20 | B174: 7364.64 | C174: 7491.8 | D174: 7303.91 | E174: 7480.14 | F174: 0 | G174: 7480.14 | I174: =G174*(2/(R_Zeitraum+1))+I173*(1-(2/(R_Zeitraum+1))) -> 7311.26907
A175: 2000-07-21 | B175: 7481.19 | C175: 7503.32 | D175: 7374.6 | E175: 7378.86 | F175: 0 | G175: 7378.86 | I175: =G175*(2/(R_Zeitraum+1))+I174*(1-(2/(R_Zeitraum+1))) -> 7326.289277
A176: 2000-07-24 | B176: 7377.98 | C176: 7428.17 | D176: 7314.2 | E176: 7314.2 | F176: 1000000 | G176: 7314.2 | I176: =G176*(2/(R_Zeitraum+1))+I175*(1-(2/(R_Zeitraum+1))) -> 7323.602771
A177: 2000-07-25 | B177: 7323.24 | C177: 7358.64 | D177: 7294.06 | E177: 7329.46 | F177: 1000000 | G177: 7329.46 | I177: =G177*(2/(R_Zeitraum+1))+I176*(1-(2/(R_Zeitraum+1))) -> 7324.904377
A178: 2000-07-26 | B178: 7330.14 | C178: 7368.34 | D178: 7250.22 | E178: 7268 | F178: 1000000 | G178: 7268 | I178: =G178*(2/(R_Zeitraum+1))+I177*(1-(2/(R_Zeitraum+1))) -> 7312.25896
A179: 2000-07-27 | B179: 7291.14 | C179: 7333.02 | D179: 7170.81 | E179: 7183.44 | F179: 1000000 | G179: 7183.44 | I179: =G179*(2/(R_Zeitraum+1))+I178*(1-(2/(R_Zeitraum+1))) -> 7283.632525
A180: 2000-07-28 | B180: 7188.63 | C180: 7222.11 | D180: 7076.37 | E180: 7128.3 | F180: 1000000 | G180: 7128.3 | I180: =G180*(2/(R_Zeitraum+1))+I179*(1-(2/(R_Zeitraum+1))) -> 7249.114186
A181: 2000-07-31 | B181: 7135.39 | C181: 7251.88 | D181: 7112.94 | E181: 7190.37 | F181: 1000000 | G181: 7190.37 | I181: =G181*(2/(R_Zeitraum+1))+I180*(1-(2/(R_Zeitraum+1))) -> 7236.059922
A182: 2000-08-01 | B182: 7194.03 | C182: 7244.55 | D182: 7094.93 | E182: 7145.53 | F182: 1000000 | G182: 7145.53 | I182: =G182*(2/(R_Zeitraum+1))+I181*(1-(2/(R_Zeitraum+1))) -> 7215.942162
A183: 2000-08-02 | B183: 7151.5 | C183: 7197.32 | D183: 7068.96 | E183: 7112.45 | F183: 1000000 | G183: 7112.45 | I183: =G183*(2/(R_Zeitraum+1))+I182*(1-(2/(R_Zeitraum+1))) -> 7192.943904
A184: 2000-08-03 | B184: 7113.08 | C184: 7113.08 | D184: 6954.6 | E184: 7011.74 | F184: 1000000 | G184: 7011.74 | I184: =G184*(2/(R_Zeitraum+1))+I183*(1-(2/(R_Zeitraum+1))) -> 7152.676369
A185: 2000-08-04 | B185: 7040.25 | C185: 7112.97 | D185: 7007.21 | E185: 7016.59 | F185: 1000000 | G185: 7016.59 | I185: =G185*(2/(R_Zeitraum+1))+I184*(1-(2/(R_Zeitraum+1))) -> 7122.434954
A186: 2000-08-07 | B186: 7020.65 | C186: 7135.28 | D186: 7020.65 | E186: 7113.22 | F186: 1000000 | G186: 7113.22 | I186: =G186*(2/(R_Zeitraum+1))+I185*(1-(2/(R_Zeitraum+1))) -> 7120.387186
A187: 2000-08-08 | B187: 7110.47 | C187: 7194.22 | D187: 7079.74 | E187: 7143.96 | F187: 1000000 | G187: 7143.96 | I187: =G187*(2/(R_Zeitraum+1))+I186*(1-(2/(R_Zeitraum+1))) -> 7125.625589
A188: 2000-08-09 | B188: 7129.7 | C188: 7268.64 | D188: 7129.7 | E188: 7226.71 | F188: 1000000 | G188: 7226.71 | I188: =G188*(2/(R_Zeitraum+1))+I187*(1-(2/(R_Zeitraum+1))) -> 7148.088792
A189: 2000-08-10 | B189: 7228.7 | C189: 7318.94 | D189: 7213.38 | E189: 7280.97 | F189: 1000000 | G189: 7280.97 | I189: =G189*(2/(R_Zeitraum+1))+I188*(1-(2/(R_Zeitraum+1))) -> 7177.617949
A190: 2000-08-11 | B190: 7289.26 | C190: 7327.22 | D190: 7225.03 | E190: 7322.98 | F190: 1000000 | G190: 7322.98 | I190: =G190*(2/(R_Zeitraum+1))+I189*(1-(2/(R_Zeitraum+1))) -> 7209.920627
A191: 2000-08-14 | B191: 7323.87 | C191: 7369.01 | D191: 7297.03 | E191: 7331.67 | F191: 1000000 | G191: 7331.67 | I191: =G191*(2/(R_Zeitraum+1))+I190*(1-(2/(R_Zeitraum+1))) -> 7236.976043
A192: 2000-08-15 | B192: 7336.73 | C192: 7380.19 | D192: 7276.04 | E192: 7307.43 | F192: 1000000 | G192: 7307.43 | I192: =G192*(2/(R_Zeitraum+1))+I191*(1-(2/(R_Zeitraum+1))) -> 7252.632478
A193: 2000-08-16 | B193: 7314.57 | C193: 7363.64 | D193: 7291.01 | E193: 7315.27 | F193: 1000000 | G193: 7315.27 | I193: =G193*(2/(R_Zeitraum+1))+I192*(1-(2/(R_Zeitraum+1))) -> 7266.551927
A194: 2000-08-17 | B194: 7320.69 | C194: 7336.23 | D194: 7214.68 | E194: 7278.43 | F194: 1000000 | G194: 7278.43 | I194: =G194*(2/(R_Zeitraum+1))+I193*(1-(2/(R_Zeitraum+1))) -> 7269.191499
A195: 2000-08-18 | B195: 7286.32 | C195: 7320.61 | D195: 7216.62 | E195: 7232.42 | F195: 1000000 | G195: 7232.42 | I195: =G195*(2/(R_Zeitraum+1))+I194*(1-(2/(R_Zeitraum+1))) -> 7261.020055
A196: 2000-08-21 | B196: 7233.74 | C196: 7258.87 | D196: 7147.15 | E196: 7199.34 | F196: 1000000 | G196: 7199.34 | I196: =G196*(2/(R_Zeitraum+1))+I195*(1-(2/(R_Zeitraum+1))) -> 7247.313376
A197: 2000-08-22 | B197: 7208.39 | C197: 7282.21 | D197: 7208.39 | E197: 7249.2 | F197: 1000000 | G197: 7249.2 | I197: =G197*(2/(R_Zeitraum+1))+I196*(1-(2/(R_Zeitraum+1))) -> 7247.732626
A198: 2000-08-23 | B198: 7257.34 | C198: 7263.55 | D198: 7157.85 | E198: 7232.78 | F198: 1000000 | G198: 7232.78 | I198: =G198*(2/(R_Zeitraum+1))+I197*(1-(2/(R_Zeitraum+1))) -> 7244.40982
A199: 2000-08-24 | B199: 7233.78 | C199: 7279.2 | D199: 7213.2 | E199: 7230.26 | F199: 1000000 | G199: 7230.26 | I199: =G199*(2/(R_Zeitraum+1))+I198*(1-(2/(R_Zeitraum+1))) -> 7241.265416
A200: 2000-08-25 | B200: 7232.37 | C200: 7333.09 | D200: 7232.37 | E200: 7307.17 | F200: 1000000 | G200: 7307.17 | I200: =G200*(2/(R_Zeitraum+1))+I199*(1-(2/(R_Zeitraum+1))) -> 7255.910879
A201: 2000-08-28 | B201: 7320.93 | C201: 7395.81 | D201: 7310.29 | E201: 7339.22 | F201: 1000000 | G201: 7339.22 | I201: =G201*(2/(R_Zeitraum+1))+I200*(1-(2/(R_Zeitraum+1))) -> 7274.424017
A202: 2000-08-29 | B202: 7342.04 | C202: 7355.58 | D202: 7277.17 | E202: 7294.4 | F202: 1000000 | G202: 7294.4 | I202: =G202*(2/(R_Zeitraum+1))+I201*(1-(2/(R_Zeitraum+1))) -> 7278.863124
A203: 2000-08-30 | B203: 7292.46 | C203: 7292.46 | D203: 7176.24 | E203: 7192.69 | F203: 1000000 | G203: 7192.69 | I203: =G203*(2/(R_Zeitraum+1))+I202*(1-(2/(R_Zeitraum+1))) -> 7259.713541
A204: 2000-08-31 | B204: 7191 | C204: 7251.31 | D204: 7168.52 | E204: 7244.79 | F204: 1000000 | G204: 7244.79 | I204: =G204*(2/(R_Zeitraum+1))+I203*(1-(2/(R_Zeitraum+1))) -> 7256.397199
A205: 2000-09-01 | B205: 7221.41 | C205: 7397.12 | D205: 7221.41 | E205: 7344.67 | F205: 1000000 | G205: 7344.67 | I205: =G205*(2/(R_Zeitraum+1))+I204*(1-(2/(R_Zeitraum+1))) -> 7276.013377
A206: 2000-09-04 | B206: 7355.74 | C206: 7453.36 | D206: 7355.74 | E206: 7445.56 | F206: 1000000 | G206: 7445.56 | I206: =G206*(2/(R_Zeitraum+1))+I205*(1-(2/(R_Zeitraum+1))) -> 7313.690404
A207: 2000-09-05 | B207: 7448.08 | C207: 7456.71 | D207: 7369.36 | E207: 7391.27 | F207: 1000000 | G207: 7391.27 | I207: =G207*(2/(R_Zeitraum+1))+I206*(1-(2/(R_Zeitraum+1))) -> 7330.930314
A208: 2000-09-06 | B208: 7397.05 | C208: 7434.02 | D208: 7315.15 | E208: 7329.9 | F208: 1000000 | G208: 7329.9 | I208: =G208*(2/(R_Zeitraum+1))+I207*(1-(2/(R_Zeitraum+1))) -> 7330.701356
A209: 2000-09-07 | B209: 7327.66 | C209: 7383.6 | D209: 7283.79 | E209: 7373.34 | F209: 1000000 | G209: 7373.34 | I209: =G209*(2/(R_Zeitraum+1))+I208*(1-(2/(R_Zeitraum+1))) -> 7340.17661
A210: 2000-09-08 | B210: 7373.9 | C210: 7393.88 | D210: 7248.94 | E210: 7261.04 | F210: 1000000 | G210: 7261.04 | I210: =G210*(2/(R_Zeitraum+1))+I209*(1-(2/(R_Zeitraum+1))) -> 7322.590697
A211: 2000-09-11 | B211: 7267.68 | C211: 7273.3 | D211: 7196.64 | E211: 7214.45 | F211: 1000000 | G211: 7214.45 | I211: =G211*(2/(R_Zeitraum+1))+I210*(1-(2/(R_Zeitraum+1))) -> 7298.559431
A212: 2000-09-12 | B212: 7213.18 | C212: 7213.18 | D212: 7129.03 | E212: 7135.75 | F212: 1000000 | G212: 7135.75 | I212: =G212*(2/(R_Zeitraum+1))+I211*(1-(2/(R_Zeitraum+1))) -> 7262.379557
A213: 2000-09-13 | B213: 7134.56 | C213: 7169.53 | D213: 6994.18 | E213: 7006.26 | F213: 1000000 | G213: 7006.26 | I213: =G213*(2/(R_Zeitraum+1))+I212*(1-(2/(R_Zeitraum+1))) -> 7205.4641
A214: 2000-09-14 | B214: 7010.7 | C214: 7101.5 | D214: 7006.64 | E214: 7049.82 | F214: 1000000 | G214: 7049.82 | I214: =G214*(2/(R_Zeitraum+1))+I213*(1-(2/(R_Zeitraum+1))) -> 7170.876522
... 3876 more rows
